[Event "Early-Titled-Tuesday-Blitz-April-16-2024"]
[Site "Chess.com"]
[Date "2024.04.16"]
[Round "11"]
[White "lefonghua"]
[Black "jumpingknight20"]
[Result "0-1"]
[WhiteElo "2584"]
[BlackElo "2733"]
[TimeControl "180+1"]
[EndTime "10:12:59 PDT"]
[Termination "jumpingknight20 won by resignation"]

1. d4 {[%clk 0:03:00.9]} 1... g6 {[%clk 0:02:58.9]} 2. c4 {[%clk 0:03:00.7]}
2... Bg7 {[%clk 0:02:59.5]} 3. e4 {[%clk 0:03:01.1]} 3... d6 {[%clk 0:02:58.9]}
4. f4 {[%clk 0:03:01.4]} 4... Nd7 {[%clk 0:02:51.6]} 5. Nf3 {[%clk 0:03:00.6]}
5... c5 {[%clk 0:02:51.4]} 6. d5 {[%clk 0:03:00.8]} 6... Ngf6 {[%clk 0:02:51.7]}
7. Nc3 {[%clk 0:03:00.6]} 7... O-O {[%clk 0:02:49.8]} 8. Be2 {[%clk 0:03:00.9]}
8... a6 {[%clk 0:02:48.8]} 9. a4 {[%clk 0:03:00.3]} 9... Rb8 {[%clk 0:02:46.1]}
10. O-O {[%clk 0:03:00.1]} 10... Ne8 {[%clk 0:02:39.4]} 11. Bd3 {[%clk
0:02:53.9]} 11... Nc7 {[%clk 0:02:37.7]} 12. a5 {[%clk 0:02:52.3]} 12... e6
{[%clk 0:02:20.6]} 13. Re1 {[%clk 0:02:44.6]} 13... b5 {[%clk 0:02:13.6]} 14.
axb6 {[%clk 0:02:40.6]} 14... Nxb6 {[%clk 0:02:14]} 15. h3 {[%clk 0:02:27.9]}
15... exd5 {[%clk 0:02:09.5]} 16. cxd5 {[%clk 0:02:27.6]} 16... c4 {[%clk
0:02:10]} 17. Bf1 {[%clk 0:02:20.1]} 17... Nb5 {[%clk 0:02:09.6]} 18. Nxb5
{[%clk 0:02:13.7]} 18... axb5 {[%clk 0:02:10.5]} 19. Ra2 {[%clk 0:02:05.2]}
19... Na4 {[%clk 0:01:44.6]} 20. Nd4 {[%clk 0:01:53.3]} 20... Bd7 {[%clk
0:01:35.2]} 21. Be3 {[%clk 0:01:43.7]} 21... Re8 {[%clk 0:01:32.5]} 22. Bf2
{[%clk 0:01:38.4]} 22... Nc5 {[%clk 0:01:30.1]} 23. e5 {[%clk 0:01:28.1]} 23...
dxe5 {[%clk 0:01:28]} 24. Nc6 {[%clk 0:01:28.5]} 24... Bxc6 {[%clk 0:01:27.5]}
25. dxc6 {[%clk 0:01:29.4]} 25... Nd3 {[%clk 0:01:22.8]} 26. Bxd3 {[%clk
0:01:19.4]} 26... cxd3 {[%clk 0:01:23.7]} 27. Ra7 {[%clk 0:01:09.5]} 27... Qd6
{[%clk 0:01:02.9]} 28. c7 {[%clk 0:01:03]} 28... Rbc8 {[%clk 0:01:01.1]} 29.
fxe5 {[%clk 0:00:59.2]} 29... Bxe5 {[%clk 0:00:59]} 30. Ra3 {[%clk 0:00:52.6]}
30... d2 {[%clk 0:00:55.1]} 31. Re2 {[%clk 0:00:48.8]} 31... Bh2+ {[%clk
0:00:46.1]} 32. Kf1 {[%clk 0:00:49.2]} 32... Rxe2 {[%clk 0:00:46.1]} 33. Kxe2
{[%clk 0:00:49.7]} 33... Bf4 {[%clk 0:00:40.7]} 34. Be3 {[%clk 0:00:43.5]} 34...
Bxe3 {[%clk 0:00:36.1]} 35. Rxe3 {[%clk 0:00:42.9]} 35... Qxc7 {[%clk
0:00:33.2]} 36. Qxd2 {[%clk 0:00:41.6]} 36... Qc4+ {[%clk 0:00:32.8]} 37. Kf2
{[%clk 0:00:39.4]} 37... Qc5 {[%clk 0:00:31.8]} 38. Kf1 {[%clk 0:00:36.1]} 38...
h5 {[%clk 0:00:28.1]} 39. Rc3 {[%clk 0:00:26.7]} 39... Qf5+ {[%clk 0:00:27.9]}
40. Kg1 {[%clk 0:00:27.3]} 40... Re8 {[%clk 0:00:25.5]} 41. Rf3 {[%clk
0:00:24.6]} 41... Qe5 {[%clk 0:00:22.1]} 42. Qc3 {[%clk 0:00:20.5]} 42... Qe6
{[%clk 0:00:18.3]} 43. Kh2 {[%clk 0:00:18.5]} 43... Qe5+ {[%clk 0:00:14.6]} 44.
Qxe5 {[%clk 0:00:18.1]} 44... Rxe5 {[%clk 0:00:15.5]} 45. Rb3 {[%clk 0:00:16.9]}
45... Kg7 {[%clk 0:00:15.2]} 46. h4 {[%clk 0:00:17.2]} 46... Kf6 {[%clk
0:00:15.2]} 47. Kg3 {[%clk 0:00:16]} 47... Rf5 {[%clk 0:00:15.5]} 48. Rc3 {[%clk
0:00:15.1]} 48... Ke6 {[%clk 0:00:14.5]} 49. Rc6+ {[%clk 0:00:14.5]} 49... Kd5
{[%clk 0:00:14.1]} 50. Rc7 {[%clk 0:00:15]} 50... Kd6 {[%clk 0:00:14.2]} 51. Rc8
{[%clk 0:00:14.7]} 51... Rc5 {[%clk 0:00:13.2]} 52. Rb8 {[%clk 0:00:14.5]} 52...
Kd5 {[%clk 0:00:12]} 53. b4 {[%clk 0:00:14.1]} 53... Rc3+ {[%clk 0:00:11.8]} 54.
Kh2 {[%clk 0:00:14.1]} 54... Kc4 {[%clk 0:00:11.8]} 55. Rb7 {[%clk 0:00:14.5]}
55... Kxb4 {[%clk 0:00:11.2]} 56. Rxf7 {[%clk 0:00:14.4]} 56... Rc6 {[%clk
0:00:10.9]} 57. Rb7 {[%clk 0:00:11.1]} 57... Kc4 {[%clk 0:00:10.2]} 58. Kh3
{[%clk 0:00:11.3]} 58... b4 {[%clk 0:00:10.5]} 59. g4 {[%clk 0:00:12]} 59... b3
{[%clk 0:00:09.4]} 60. gxh5 {[%clk 0:00:12.2]} 60... gxh5 {[%clk 0:00:10.3]} 61.
Kg3 {[%clk 0:00:12.8]} 61... Kc3 {[%clk 0:00:09.7]} 62. Kf4 {[%clk 0:00:10.7]}
62... b2 {[%clk 0:00:09.9]} 63. Kg5 {[%clk 0:00:09.6]} 63... Rc5+ {[%clk
0:00:10.2]} 64. Kh6 {[%clk 0:00:09.8]} 64... Kc2 {[%clk 0:00:10.4]} 0-1

[Event "Early-Titled-Tuesday-Blitz-April-16-2024"]
[Site "Chess.com"]
[Date "2024.04.16"]
[Round "11"]
[White "GMSrinath"]
[Black "FaustinoOro"]
[Result "1-0"]
[WhiteElo "2845"]
[BlackElo "2924"]
[TimeControl "180+1"]
[EndTime "10:13:06 PDT"]
[Termination "GMSrinath won by resignation"]

1. Nf3 {[%clk 0:03:00.9]} 1... d5 {[%clk 0:02:59.5]} 2. e3 {[%clk 0:03:01]} 2...
Nf6 {[%clk 0:02:59.3]} 3. c4 {[%clk 0:03:01.6]} 3... e6 {[%clk 0:02:59.3]} 4. b3
{[%clk 0:03:01.9]} 4... Be7 {[%clk 0:02:59.3]} 5. Bb2 {[%clk 0:03:02.7]} 5...
O-O {[%clk 0:02:59.7]} 6. Nc3 {[%clk 0:03:01.4]} 6... b6 {[%clk 0:02:55.9]} 7.
cxd5 {[%clk 0:03:00.1]} 7... Nxd5 {[%clk 0:02:55.3]} 8. Nxd5 {[%clk 0:02:57.6]}
8... Qxd5 {[%clk 0:02:56.2]} 9. Rc1 {[%clk 0:02:57.3]} 9... c5 {[%clk
0:02:54.2]} 10. d4 {[%clk 0:02:57.3]} 10... Bb7 {[%clk 0:02:53.2]} 11. Be2
{[%clk 0:02:53.1]} 11... Qd8 {[%clk 0:02:50.7]} 12. O-O {[%clk 0:02:52.8]} 12...
Nd7 {[%clk 0:02:51.3]} 13. Qc2 {[%clk 0:02:47.9]} 13... Rc8 {[%clk 0:02:45.6]}
14. Qb1 {[%clk 0:02:48.2]} 14... Bf6 {[%clk 0:02:31.9]} 15. Rfd1 {[%clk
0:02:44.4]} 15... Qe7 {[%clk 0:02:30.6]} 16. dxc5 {[%clk 0:02:20.7]} 16... Nxc5
{[%clk 0:02:19.2]} 17. Nd4 {[%clk 0:02:21.1]} 17... Rfd8 {[%clk 0:02:15.3]} 18.
Ba3 {[%clk 0:02:13.2]} 18... h6 {[%clk 0:01:58.7]} 19. h3 {[%clk 0:02:10.2]}
19... Be5 {[%clk 0:01:46.2]} 20. Bf3 {[%clk 0:02:09.2]} 20... Bxf3 {[%clk
0:01:45.2]} 21. Nxf3 {[%clk 0:02:10.1]} 21... Bd6 {[%clk 0:01:43.5]} 22. Rc4
{[%clk 0:02:07.5]} 22... Nb7 {[%clk 0:01:36.1]} 23. Rxc8 {[%clk 0:01:56.5]}
23... Rxc8 {[%clk 0:01:37]} 24. Bb2 {[%clk 0:01:57.4]} 24... Rd8 {[%clk
0:01:29.8]} 25. Nd4 {[%clk 0:01:55.4]} 25... Qe8 {[%clk 0:01:24.3]} 26. Qe4
{[%clk 0:01:48.3]} 26... Nc5 {[%clk 0:01:24.3]} 27. Qg4 {[%clk 0:01:48.7]} 27...
Be5 {[%clk 0:01:23.4]} 28. g3 {[%clk 0:01:26.2]} 28... Bf6 {[%clk 0:01:15.5]}
29. Kg2 {[%clk 0:01:20.8]} 29... Rd5 {[%clk 0:01:14.1]} 30. e4 {[%clk
0:00:43.1]} 30... Rd8 {[%clk 0:01:12.6]} 31. Nc6 {[%clk 0:00:41.8]} 31... h5
{[%clk 0:00:35.1]} 32. Rxd8 {[%clk 0:00:34.9]} 32... Qxd8 {[%clk 0:00:34.5]} 33.
Qxh5 {[%clk 0:00:18.3]} 33... Qd3 {[%clk 0:00:25.3]} 34. Bxf6 {[%clk 0:00:16.4]}
34... Qxe4+ {[%clk 0:00:25.1]} 35. Qf3 {[%clk 0:00:16.7]} 35... gxf6 {[%clk
0:00:20.2]} 36. Qxe4 {[%clk 0:00:14.3]} 36... Nxe4 {[%clk 0:00:21.1]} 37. Nxa7
{[%clk 0:00:15.2]} 37... Kf8 {[%clk 0:00:19.7]} 38. a4 {[%clk 0:00:14]} 38...
Nc5 {[%clk 0:00:19.2]} 39. Nc8 {[%clk 0:00:14.5]} 39... Nxb3 {[%clk 0:00:17]}
40. Nxb6 {[%clk 0:00:15.1]} 40... Ke7 {[%clk 0:00:17.7]} 41. h4 {[%clk
0:00:15.1]} 41... f5 {[%clk 0:00:13.5]} 42. Kf3 {[%clk 0:00:13.9]} 42... Kf6
{[%clk 0:00:13.4]} 43. Ke3 {[%clk 0:00:13.6]} 43... e5 {[%clk 0:00:13]} 44. Nc4
{[%clk 0:00:13.8]} 44... Nc5 {[%clk 0:00:09.1]} 45. a5 {[%clk 0:00:14.2]} 45...
Ke6 {[%clk 0:00:08.7]} 46. Nb6 {[%clk 0:00:11.1]} 46... f6 {[%clk 0:00:08.4]}
47. Nc4 {[%clk 0:00:07.7]} 47... Kd5 {[%clk 0:00:08.3]} 48. Nb6+ {[%clk
0:00:07.7]} 48... Ke6 {[%clk 0:00:08.5]} 49. f3 {[%clk 0:00:07.4]} 49... Kf7
{[%clk 0:00:05.9]} 50. Nd5 {[%clk 0:00:05.9]} 50... Ke6 {[%clk 0:00:06]} 51. Nb4
{[%clk 0:00:06.4]} 51... Nd7 {[%clk 0:00:04.3]} 52. a6 {[%clk 0:00:04.9]} 52...
Nb6 {[%clk 0:00:05]} 53. a7 {[%clk 0:00:04.6]} 53... Na8 {[%clk 0:00:05.5]} 54.
h5 {[%clk 0:00:04.6]} 54... Kf7 {[%clk 0:00:05.3]} 55. g4 {[%clk 0:00:05.2]}
55... Kg7 {[%clk 0:00:04.8]} 56. Nd5 {[%clk 0:00:04.1]} 56... fxg4 {[%clk
0:00:02]} 57. fxg4 {[%clk 0:00:05]} 57... Kh6 {[%clk 0:00:02.5]} 58. Nxf6 {[%clk
0:00:04.6]} 58... Kg5 {[%clk 0:00:03.4]} 59. Ne4+ {[%clk 0:00:03.4]} 59... Kxg4
{[%clk 0:00:04]} 60. h6 {[%clk 0:00:04.1]} 60... Nb6 {[%clk 0:00:03.9]} 61. h7
{[%clk 0:00:04.2]} 61... Nd5+ {[%clk 0:00:04.8]} 62. Kf2 {[%clk 0:00:04.3]} 1-0

[Event "Early-Titled-Tuesday-Blitz-April-16-2024"]
[Site "Chess.com"]
[Date "2024.04.16"]
[Round "11"]
[White "kachsona"]
[Black "Agibileg"]
[Result "0-1"]
[WhiteElo "2619"]
[BlackElo "2774"]
[TimeControl "180+1"]
[EndTime "10:13:14 PDT"]
[Termination "Agibileg won on time"]

1. e4 {[%clk 0:03:00.9]} 1... c5 {[%clk 0:02:59.4]} 2. Nf3 {[%clk 0:03:00.7]}
2... e6 {[%clk 0:02:59.2]} 3. d4 {[%clk 0:03:01.1]} 3... cxd4 {[%clk 0:03:00.1]}
4. Nxd4 {[%clk 0:03:01.8]} 4... Nc6 {[%clk 0:03:00.3]} 5. Nc3 {[%clk 0:03:02.4]}
5... a6 {[%clk 0:03:00.6]} 6. Nxc6 {[%clk 0:03:01.1]} 6... bxc6 {[%clk
0:03:01.5]} 7. Bd3 {[%clk 0:03:01.6]} 7... d5 {[%clk 0:03:02]} 8. O-O {[%clk
0:03:01.6]} 8... Nf6 {[%clk 0:03:02.5]} 9. Re1 {[%clk 0:02:56.8]} 9... Be7
{[%clk 0:03:02.3]} 10. e5 {[%clk 0:02:56.9]} 10... Nd7 {[%clk 0:03:02.6]} 11.
Qg4 {[%clk 0:02:57.4]} 11... g6 {[%clk 0:03:03]} 12. Bh6 {[%clk 0:02:55.8]}
12... Qb6 {[%clk 0:03:03.3]} 13. Na4 {[%clk 0:02:52.8]} 13... Qb4 {[%clk
0:03:03.6]} 14. Qxb4 {[%clk 0:02:48.8]} 14... Bxb4 {[%clk 0:03:04.5]} 15. c3
{[%clk 0:02:49.1]} 15... Be7 {[%clk 0:03:04.9]} 16. c4 {[%clk 0:02:43.5]} 16...
Bb7 {[%clk 0:03:04.8]} 17. Rac1 {[%clk 0:02:33.5]} 17... c5 {[%clk 0:02:41.1]}
18. b3 {[%clk 0:02:23.3]} 18... d4 {[%clk 0:02:39.9]} 19. Bd2 {[%clk 0:02:15.4]}
19... Bc6 {[%clk 0:02:38.9]} 20. Be4 {[%clk 0:02:14.3]} 20... Bxe4 {[%clk
0:02:37.9]} 21. Rxe4 {[%clk 0:02:15.2]} 21... a5 {[%clk 0:02:34]} 22. Nb2 {[%clk
0:02:11.1]} 22... O-O {[%clk 0:02:31.6]} 23. Ree1 {[%clk 0:02:02.9]} 23... Kg7
{[%clk 0:02:29.6]} 24. f4 {[%clk 0:02:02.3]} 24... Rfb8 {[%clk 0:02:24]} 25. Kf2
{[%clk 0:02:00.1]} 25... Nb6 {[%clk 0:02:22.8]} 26. Nd3 {[%clk 0:01:43.8]} 26...
h5 {[%clk 0:02:07.4]} 27. Ke2 {[%clk 0:01:42.2]} 27... h4 {[%clk 0:01:50.8]} 28.
a3 {[%clk 0:01:25.5]} 28... Nd7 {[%clk 0:01:47.9]} 29. Rb1 {[%clk 0:01:25]}
29... Rb7 {[%clk 0:01:46.5]} 30. Kd1 {[%clk 0:01:20.6]} 30... Nb8 {[%clk
0:01:46.5]} 31. Kc2 {[%clk 0:01:16.5]} 31... Nc6 {[%clk 0:01:46.7]} 32. Rb2
{[%clk 0:01:04]} 32... Rab8 {[%clk 0:01:45.6]} 33. Reb1 {[%clk 0:01:00]} 33...
f6 {[%clk 0:01:37.6]} 34. exf6+ {[%clk 0:00:57.4]} 34... Kxf6 {[%clk 0:01:36.9]}
35. Re1 {[%clk 0:00:53.4]} 35... Bd6 {[%clk 0:01:27.4]} 36. Re2 {[%clk
0:00:48.5]} 36... e5 {[%clk 0:01:12.1]} 37. fxe5+ {[%clk 0:00:42.7]} 37... Nxe5
{[%clk 0:01:13]} 38. Rf2+ {[%clk 0:00:17.2]} 38... Kg7 {[%clk 0:01:12.4]} 39.
Nxe5 {[%clk 0:00:07.6]} 39... Bxe5 {[%clk 0:01:13.3]} 40. Rb1 {[%clk 0:00:06.6]}
40... d3+ {[%clk 0:01:02.1]} 41. Kxd3 {[%clk 0:00:07]} 41... Rxb3+ {[%clk
0:01:02.6]} 42. Rxb3 {[%clk 0:00:06.6]} 42... Rxb3+ {[%clk 0:01:03.5]} 43. Ke4
{[%clk 0:00:07]} 43... Bd4 {[%clk 0:01:03.6]} 44. Rf3 {[%clk 0:00:05.6]} 44...
Rb2 {[%clk 0:01:02.2]} 45. Bxa5 {[%clk 0:00:05]} 45... Rxg2 {[%clk 0:01:02.3]}
46. h3 {[%clk 0:00:04.4]} 46... Rc2 {[%clk 0:00:59]} 47. Kd5 {[%clk 0:00:04.2]}
47... g5 {[%clk 0:00:57.3]} 48. Bb6 {[%clk 0:00:03.6]} 48... Rd2 {[%clk
0:00:42.5]} 49. Bxc5 {[%clk 0:00:03.8]} 49... Bf2+ {[%clk 0:00:38.4]} 50. Kc6
{[%clk 0:00:03.4]} 50... Bg3 {[%clk 0:00:38.8]} 51. Be7 {[%clk 0:00:02.8]} 51...
Kg6 {[%clk 0:00:17.7]} 52. c5 {[%clk 0:00:03.2]} 52... g4 {[%clk 0:00:11.6]} 53.
hxg4 {[%clk 0:00:03.1]} 53... Rg2 {[%clk 0:00:08.1]} 54. Bd6 {[%clk 0:00:03.2]}
54... Kg5 {[%clk 0:00:05.4]} 55. Kd7 {[%clk 0:00:03]} 55... Kxg4 {[%clk
0:00:05.4]} 56. Rd3 {[%clk 0:00:03]} 56... h3 {[%clk 0:00:05.5]} 57. Bxg3 {[%clk
0:00:02.7]} 57... Rxg3 {[%clk 0:00:05.8]} 58. Rd4+ {[%clk 0:00:03.1]} 58... Kg5
{[%clk 0:00:05.8]} 59. c6 {[%clk 0:00:01.4]} 59... h2 {[%clk 0:00:05.9]} 0-1

[Event "Early-Titled-Tuesday-Blitz-April-16-2024"]
[Site "Chess.com"]
[Date "2024.04.16"]
[Round "11"]
[White "InitiatingASC"]
[Black "Bilan_Danila"]
[Result "0-1"]
[WhiteElo "2363"]
[BlackElo "2511"]
[TimeControl "180+1"]
[EndTime "10:13:17 PDT"]
[Termination "Bilan_Danila won by resignation"]

1. d4 {[%clk 0:03:00.9]} 1... d5 {[%clk 0:02:58.7]} 2. c4 {[%clk 0:03:01]} 2...
c6 {[%clk 0:02:58.8]} 3. Nf3 {[%clk 0:02:58.7]} 3... Nf6 {[%clk 0:02:58.9]} 4.
g3 {[%clk 0:02:59.3]} 4... Bf5 {[%clk 0:02:58.7]} 5. Bg2 {[%clk 0:02:59.8]} 5...
e6 {[%clk 0:02:59]} 6. O-O {[%clk 0:03:00.3]} 6... h6 {[%clk 0:02:58.5]} 7. b3
{[%clk 0:02:57.6]} 7... Nbd7 {[%clk 0:02:57.3]} 8. Bb2 {[%clk 0:02:57.9]} 8...
Bd6 {[%clk 0:02:57]} 9. Nbd2 {[%clk 0:02:56.3]} 9... O-O {[%clk 0:02:52.3]} 10.
Ne5 {[%clk 0:02:55.3]} 10... Qe7 {[%clk 0:02:45]} 11. Nxd7 {[%clk 0:02:42.1]}
11... Qxd7 {[%clk 0:02:40.3]} 12. Re1 {[%clk 0:02:33.4]} 12... Rfd8 {[%clk
0:02:24.3]} 13. e4 {[%clk 0:02:31.8]} 13... dxe4 {[%clk 0:02:24.3]} 14. Nxe4
{[%clk 0:02:32.2]} 14... Nxe4 {[%clk 0:02:24.1]} 15. Bxe4 {[%clk 0:02:32.5]}
15... Bxe4 {[%clk 0:02:19.8]} 16. Rxe4 {[%clk 0:02:33.4]} 16... Be7 {[%clk
0:02:18.9]} 17. Qe2 {[%clk 0:02:30.8]} 17... Bf6 {[%clk 0:02:18.7]} 18. Rd1
{[%clk 0:02:27.4]} 18... Qc7 {[%clk 0:02:12.4]} 19. Re3 {[%clk 0:02:18.3]} 19...
Rd7 {[%clk 0:02:06]} 20. Red3 {[%clk 0:02:17.8]} 20... Rad8 {[%clk 0:02:06.4]}
21. Bc3 {[%clk 0:02:10.9]} 21... b5 {[%clk 0:01:20.6]} 22. Qb2 {[%clk
0:02:00.7]} 22... bxc4 {[%clk 0:01:15.9]} 23. bxc4 {[%clk 0:02:01.6]} 23... Qb7
{[%clk 0:01:14.4]} 24. Qa3 {[%clk 0:01:56.1]} 24... e5 {[%clk 0:01:01.6]} 25.
Ba5 {[%clk 0:01:50.6]} 25... Re8 {[%clk 0:00:46.4]} 26. dxe5 {[%clk 0:01:33.8]}
26... Rxd3 {[%clk 0:00:45.8]} 27. Qxd3 {[%clk 0:01:34.7]} 27... Rxe5 {[%clk
0:00:28.2]} 28. Bc3 {[%clk 0:01:27.3]} 28... Re6 {[%clk 0:00:28.5]} 29. Bxf6
{[%clk 0:01:26.4]} 29... Rxf6 {[%clk 0:00:29.4]} 30. Qd8+ {[%clk 0:01:21.5]}
30... Kh7 {[%clk 0:00:28]} 31. Qd3+ {[%clk 0:01:15.6]} 31... g6 {[%clk
0:00:21.3]} 32. Qd7 {[%clk 0:01:12.8]} 32... Qb2 {[%clk 0:00:14.7]} 33. Qd4
{[%clk 0:01:12.1]} 33... Qxd4 {[%clk 0:00:11]} 34. Rxd4 {[%clk 0:01:13]} 34...
c5 {[%clk 0:00:10.5]} 35. Rd7 {[%clk 0:01:10.3]} 35... Ra6 {[%clk 0:00:09]} 36.
Rxf7+ {[%clk 0:01:10.5]} 36... Kg8 {[%clk 0:00:08.6]} 37. Rc7 {[%clk 0:01:09.6]}
37... Rxa2 {[%clk 0:00:09.3]} 38. Rxc5 {[%clk 0:01:10]} 38... Kg7 {[%clk
0:00:09.9]} 39. Rb5 {[%clk 0:01:06.4]} 39... h5 {[%clk 0:00:08.9]} 40. c5 {[%clk
0:01:06.2]} 40... Rc2 {[%clk 0:00:08.4]} 41. Rb7+ {[%clk 0:01:05.5]} 41... Kh6
{[%clk 0:00:08.4]} 42. Rxa7 {[%clk 0:01:06.2]} 42... Rxc5 {[%clk 0:00:08.9]} 43.
h4 {[%clk 0:01:06.7]} 43... Rc2 {[%clk 0:00:07.7]} 44. Kg2 {[%clk 0:01:07.2]}
44... Rb2 {[%clk 0:00:07.8]} 45. Re7 {[%clk 0:01:07.1]} 45... Rc2 {[%clk
0:00:07.8]} 46. Kf3 {[%clk 0:01:07.1]} 46... Rc3+ {[%clk 0:00:08.4]} 47. Re3
{[%clk 0:01:07.1]} 47... Rc4 {[%clk 0:00:09.1]} 48. Ra3 {[%clk 0:01:06.4]} 48...
Rb4 {[%clk 0:00:09.2]} 49. Ke3 {[%clk 0:01:06.9]} 49... Rc4 {[%clk 0:00:09.3]}
50. Ra2 {[%clk 0:01:07.2]} 50... Rb4 {[%clk 0:00:09.3]} 51. Kd3 {[%clk 0:01:08]}
51... Rg4 {[%clk 0:00:08.9]} 52. Ke3 {[%clk 0:01:05.6]} 52... Rb4 {[%clk
0:00:09.1]} 53. Kf3 {[%clk 0:01:05.6]} 53... Rc4 {[%clk 0:00:09.6]} 54. Ra3
{[%clk 0:01:04.9]} 54... Rb4 {[%clk 0:00:09.6]} 55. Re3 {[%clk 0:01:05.4]} 55...
Rc4 {[%clk 0:00:09]} 56. Re8 {[%clk 0:01:05.4]} 56... Rb4 {[%clk 0:00:07.8]} 57.
Rh8+ {[%clk 0:01:04.6]} 57... Kg7 {[%clk 0:00:08.1]} 58. Re8 {[%clk 0:01:04.6]}
58... Kh6 {[%clk 0:00:08.3]} 59. Re4 {[%clk 0:01:03.5]} 59... Rb3+ {[%clk
0:00:08]} 60. Kf4 {[%clk 0:01:04]} 60... Rb5 {[%clk 0:00:07.7]} 61. f3 {[%clk
0:00:59.9]} 61... Rb1 {[%clk 0:00:06.7]} 62. Ra4 {[%clk 0:00:58.1]} 62... Rb7
{[%clk 0:00:05.9]} 63. g4 {[%clk 0:00:57.7]} 63... Rf7+ {[%clk 0:00:06.5]} 64.
Kg3 {[%clk 0:00:57.7]} 64... hxg4 {[%clk 0:00:06.6]} 65. fxg4 {[%clk 0:00:57.6]}
65... Kg7 {[%clk 0:00:06.8]} 66. Ra6 {[%clk 0:00:53.9]} 66... Rc7 {[%clk
0:00:06.9]} 67. Re6 {[%clk 0:00:53.5]} 67... Rb7 {[%clk 0:00:06.9]} 68. Kf4
{[%clk 0:00:53.5]} 68... Rf7+ {[%clk 0:00:06.9]} 69. Kg5 {[%clk 0:00:53.2]}
69... Kh7 {[%clk 0:00:02.9]} 70. Rxg6 {[%clk 0:00:53.1]} 70... Rb7 {[%clk
0:00:03.6]} 71. h5 {[%clk 0:00:53.2]} 71... Rb4 {[%clk 0:00:03.5]} 72. Kh4
{[%clk 0:00:53.8]} 72... Rb1 {[%clk 0:00:03.8]} 73. Ra6 {[%clk 0:00:52.9]} 73...
Rb7 {[%clk 0:00:04.3]} 74. Rf6 {[%clk 0:00:48.8]} 74... Rd7 {[%clk 0:00:04.8]}
75. Kg5 {[%clk 0:00:49]} 75... Rg7+ {[%clk 0:00:04.6]} 76. Kf5 {[%clk
0:00:48.3]} 76... Rb7 {[%clk 0:00:05.3]} 77. Re6 {[%clk 0:00:46.7]} 77... Rf7+
{[%clk 0:00:04.9]} 78. Ke5 {[%clk 0:00:45.3]} 78... Rg7 {[%clk 0:00:05.3]} 79.
Kf4 {[%clk 0:00:44]} 79... Rf7+ {[%clk 0:00:05.8]} 80. Kg5 {[%clk 0:00:43.3]}
80... Rg7+ {[%clk 0:00:05.1]} 81. Kh4 {[%clk 0:00:43.5]} 81... Rb7 {[%clk
0:00:04.3]} 82. g5 {[%clk 0:00:43.4]} 82... Rb4+ {[%clk 0:00:04.7]} 83. Kg3
{[%clk 0:00:43.6]} 83... Kg7 {[%clk 0:00:04.2]} 84. Re7+ {[%clk 0:00:43.3]}
84... Kf8 {[%clk 0:00:04.6]} 85. Re4 {[%clk 0:00:41.9]} 85... Rxe4 {[%clk
0:00:04.3]} 86. Kf3 {[%clk 0:00:40.6]} 86... Ra4 {[%clk 0:00:03.4]} 87. g6
{[%clk 0:00:39.5]} 87... Kg7 {[%clk 0:00:03.8]} 0-1